Cogmind - Beta 16 @@@ ROGUE MODE // 2025.11.28 @ 15:40:23 Player: Miles Result: Destroyed by S-10 Pest with Light Assault Rifle Performance ------------- Evolutions (2) 1000 Regions Visited (5) 1000 Robots Destroyed (54) 270 Value Destroyed (1613) 1613 Prototype IDs (1) 20 Alien Tech Used (0) 0 Bonus (200) 200 TOTAL SCORE: 4103 Bonus ------- Entered Garrisons 200 Cogmind --------- Core Integrity 0/550 Matter 124/300 Energy 290/290 System Corruption 0% Temperature Cool (0) Movement Walking (120) Location -8/Materials Parts ------- > --- POWER (1) -------- Improved Deuterium Engine > --- PROPULSION (5) --- Improved Carbon-fiber Leg Improved Carbon-fiber Leg > --- UTILITY (3) ------ Improved Heat Sink Medium Storage Unit System Shield > --- WEAPON (2) ------- Mini Assault Cannon > --- INVENTORY (10) --- Small Storage Unit Weight Redist. System Hacking Suite Hacking Suite Relay Coupler [NC] (22) Relay Coupler [Grunt] (23) Light EM Pulse Cannon Mini Assault Cannon Datajack Peak State ------------ > --- POWER ------------ Light Nuclear Core > --- PROPULSION ------- Flight Unit Flight Unit Cesium-ion Thruster Cesium-ion Thruster Cesium-ion Thruster > --- UTILITY ---------- Improved Heat Sink Medium Storage Unit System Shield > --- WEAPON ----------- Mini Assault Cannon Mini Assault Cannon > --- INVENTORY -------- Light Nuclear Core Improved Heat Sink Small Storage Unit Weight Redist. System Hacking Suite Flak Cannon Flak Cannon Missile Launcher Datajack [Rating: 33] Favorites ----------- Power Ion Engine Engine Ion Engine Power Core Light Nuclear Core Propulsion Flight Unit Treads Light Treads Leg Improved Carbon-fiber Leg Flight Unit Flight Unit Utility Small Storage Unit Device Improved Terrain Scanner Storage Small Storage Unit Hackware System Shield Protection Utility Shielding Weapon Medium Laser Energy Gun Medium Laser Ballistic Gun Light Assault Rifle Ballistic Cannon Flak Cannon Launcher Missile Launcher Slashing Weapon Katana Build | -11 -10 -9 -8 -8 -8 ------- Run | Yrd Mat Mat Mat Gar Mat Slots Evolved 4 | . . 2 2 . . Power . | . . . . . . Propulsion 3 | . . 2 1 . . Utility 1 | . . . 1 . . Weapon . | . . . . . . Parts Attached 59 | 8 5 21 21 3 1 Power 11 | 1 1 4 4 . 1 Engine 7 | 1 1 3 1 . 1 Core 4 | . . 1 3 . . Reactor . | . . . . . . Propulsion 22 | 2 4 10 4 2 . Treads 2 | 2 . . . . . Leg 2 | . . . . 2 . Wheel . | . . . . . . Hover . | . . . . . . Flight 18 | . 4 10 4 . . Utility 11 | 2 . 1 7 1 . Device 7 | 1 . . 5 1 . Storage 2 | 1 . . 1 . . Processor . | . . . . . . Hackware 1 | . . . 1 . . Protection 1 | . . 1 . . . Artifact . | . . . . . . Weapon 15 | 3 . 6 6 . . Energy Gun 5 | 3 . 2 . . . Energy Cannon . | . . . . . . Ballistic Gun 3 | . . 3 . . . Ballistic Cannon 5 | . . 1 4 . . Launcher 1 | . . . 1 . . Special Weapon . | . . . . . . Impact Weapon . | . . . . . . Slashing Weapon 1 | . . . 1 . . Piercing Weapon . | . . . . . . Special Melee Weapon . | . . . . . . Unidentified Prototypes 1 | . . . 1 . . Parts Lost 25 | . . 12 3 10 . Power 4 | . . 1 1 2 . Propulsion 12 | . . 6 2 4 . Utility 2 | . . 1 . 1 . Weapon 7 | . . 4 . 3 . Highest Loss Streak 6 | . . 6 1 6 . To Critical Strikes . | . . . . . . Average Backups 6 | 3 6 6 8 8 8 Power . | . 1 . 1 . . Propulsion 2 | 1 4 3 . . . Utility 1 | . . . 2 4 5 Weapon 1 | 1 1 1 3 2 1 Tool/Special . | . . . . . . Unused Backups 27 | . 11 6 4 . 6 Power 4 | . . 2 2 . . Propulsion 13 | . 11 1 1 . . Utility 4 | . . . . . 4 Weapon 5 | . . 3 1 . 1 Tool/Special 1 | . . . . . 1 Average Slot Usage (%) 89 | . 100 91 90 55 63 Engine 8 | . 14 7 . 2 9 Core 2 | . . 3 8 3 . Treads 9 | . 25 . . . . Leg 1 | . . . . 5 18 Flight 21 | . 2 40 42 11 . Device 9 | . 14 3 8 6 9 Storage 11 | . 14 11 8 9 9 Hackware 2 | . . . 6 9 9 Protection 2 | . . 6 . . . Energy Gun 13 | . 28 9 . . . Ballistic Gun 2 | . . 8 . . . Ballistic Cannon 3 | . . . 10 4 9 Peak Build Rating 33 | 9 9 14 33 27 26 Average Rating 13 | 5 8 10 25 18 25 On Entrance 12 | . 9 9 11 25 22 Avg Prop Armor Cover (%) . | . . . . . . Naked Turns . | . . . . . . Heaviest Build 30 | 15 15 18 24 30 25 Greatest Support 40 | 40 40 16 29 36 36 Greatest Overweight (x) 9 | . 3 3 1 9 . Average Overweight (x) . | . . . . . . Largest Inventory Capacity 10 | 8 8 8 10 10 10 Average Capacity 8 | 7 8 8 8 10 10 Most Carried 10 | 7 8 8 10 10 9 Average Carried 6 | 3 6 6 8 8 8 Final Capacity 10 | 8 8 8 10 10 10 Final Carried 10 | 4 8 8 10 8 9 Class Distribution -------------------- 55% | Mutant 21% | Sprinter 17% | Scavenger-Sprinter 4% | Scavenger-Mutant Dominant Class ---------------- Mutant | -10/Materials Sprinter | -9/Materials Sprinter | -8/Materials Mutant | -8/Garrison Scavenger-Mutant | -8/Materials Resources | -11 -10 -9 -8 -8 -8 ----------- Run | Yrd Mat Mat Mat Gar Mat Matter Collected 1399 | 89 194 392 671 51 2 Remotely . | . . . . . . Salvage Created 1395 | 18 214 645 486 21 11 Parts 110 | 2 13 53 37 3 2 Haulers Intercepted 1 | . . . 1 . . Recyclers Shooed . | . . . . . . Parts Field Recycled . | . . . . . . Retrieved Matter . | . . . . . . Parts Self-Destructed . | . . . . . . Prevented . | . . . . . . Parts Restored . | . . . . . . Kills | -11 -10 -9 -8 -8 -8 ------- Run | Yrd Mat Mat Mat Gar Mat Combat Hostiles Destroyed 41 | . 6 20 12 2 1 Melee 3 | . . . 3 . . Guns 22 | . 6 16 . . . Cannons 14 | . . 4 7 2 1 AOE 2 | . . . 2 . . Classes Destroyed 14 | 1 3 3 6 1 . Worker 4 | . 1 1 2 . . Builder 3 | . . . 3 . . Tunneler 1 | 1 . . . . . Hauler 1 | . . . 1 . . Recycler 1 | . 1 . . . . Mechanic 1 | . . . 1 . . Operator 1 | . . . 1 . . Watcher 1 | . . 1 . . . Swarmer 14 | . 6 7 . . 1 Grunt 20 | . . 12 8 . . Duelist 1 | . . . 1 . . Sentry 2 | . . 1 1 . . Specialist 1 | . . . . 1 . Hunter 3 | . . . 2 1 . Best Kill Streak 12 | 1 4 6 12 1 1 Combat Bots Only 6 | . 3 6 4 1 1 Max Kills in Single Turn 3 | 1 1 1 3 1 1 Gunslinging . | . . . . . . Exploded 2 | . . . 2 . . Melee 1 | . . . 1 . . Uniques/NPCs Destroyed . | . . . . . . Combat | -11 -10 -9 -8 -8 -8 -------- Run | Yrd Mat Mat Mat Gar Mat Hostile Shots Fired 306 | . 43 111 69 79 4 Missed 88 | . 9 25 31 23 . Hits 218 | . 34 86 38 56 4 Melee 5 | . . 5 . . . Projectile 213 | . 34 81 38 56 4 Critical Strikes 2 | . . 1 . 1 . Damage Taken 2840 | . 267 1055 502 983 33 Core 913 | . 21 337 115 430 10 Absorbed by Shields . | . . . . . . Redirected to Shielding 6 | . . 6 . . . Regen/Repaired (Parts) 125 | . . 31 94 . . Core Remaining (%) 68 | 100 91 15 . . . Volleys Fired 173 | 15 23 68 44 17 6 Largest 2 | 2 2 2 2 2 1 Hottest 115 | 90 90 115 77 77 40 Shots Fired 253 | 22 40 105 61 19 6 Gun 159 | 22 40 97 . . . Cannon 90 | . . 8 59 17 6 Launcher 4 | . . . 2 2 . Special . | . . . . . . Kinetic 135 | . . 53 59 17 6 Thermal 92 | 21 21 50 . . . Explosive 4 | . . . 2 2 . Electromagnetic 22 | 1 19 2 . . . Robot Hit Streak 12 | 5 4 8 12 4 3 Robot Miss Streak 8 | 2 3 6 8 3 1 Penetration Max . | . . . . . . Secondary Targets . | . . . . . . Shots Hit Robots 173 | 14 16 67 52 21 3 Core Hits 115 | 2 8 42 58 4 1 Critical Kills . | . . . . . . Critical Parts Destroyed . | . . . . . . Critical Strikes 7 | . 1 4 1 1 . Burn 4 | . . 4 . . . Blast 2 | . . . 1 1 . Corrupt 1 | . 1 . . . . Melee Attacks 14 | . . . 6 8 . Impact . | . . . . . . Slashing 14 | . . . 6 8 . Piercing . | . . . . . . Sneak Attacks 1 | . . . 1 . . Combat Hostiles . | . . . . . . Follow-up Attacks . | . . . . . . Damage Inflicted 3318 | 195 230 984 1282 548 79 Guns 1206 | 169 193 844 . . . Cannons 1259 | . . 140 828 212 79 Explosions 373 | 26 37 . 215 95 . Melee 476 | . . . 235 241 . Ramming 4 | . . . 4 . . Kinetic 1626 | . . 507 828 212 79 Thermal 760 | 180 125 455 . . . Explosive 310 | . . . 215 95 . Electromagnetic 142 | 15 105 22 . . . Impact . | . . . . . . Slashing 476 | . . . 235 241 . Piercing . | . . . . . . Highest Corruption . | . . . . . . Average Corruption . | . . . . . . Corruption Purged . | . . . . . . Corruption Blocked . | . . . . . . Overload Shots . | . . . . . . Overflow Damage 24 | . . . 19 5 . Projectiles 15 | . . . 15 . . Explosions 5 | . . . . 5 . Melee 4 | . . . 4 . . Knockbacks 34 | . . 6 24 2 2 Impact . | . . . . . . Kinetic 31 | . . 6 21 2 2 Secondary 3 | . . . 3 . . Self-Inflicted Damage 68 | . . . 2 66 . Shots 2 | . . . . 2 . Rammed 1 | . . . 1 . . Targets Rammed 1 | . . . 1 . . Kicked . | . . . . . . Crushed . | . . . . . . Highest Temperature 288 | 90 288 279 250 . . Average Temperature 70 | 38 91 77 58 . . Received Heat Transfer 669 | . . 417 189 63 . Effects 1 | . . . 1 . . Interference 1 | . . . 1 . . Siege Activations . | . . . . . . Martial Activations . | . . . . . . Shielding Activations . | . . . . . . Robots Disrupted . | . . . . . . Combat Hostiles . | . . . . . . Robots Corrupted . | . . . . . . Combat Hostiles . | . . . . . . Parts Fried 1 | . 1 . . . . Impact Corruptions . | . . . . . . Robots Melted . | . . . . . . Combat Hostiles . | . . . . . . Parts Melted 5 | 2 . 3 . . . Heat Transferred 2242 | 471 309 1462 . . . Parts Sabotaged . | . . . . . . Parts Stolen . | . . . . . . Parts Stripped . | . . . . . . Power Chain Reactions 2 | 1 1 . . . . Alert | -11 -10 -9 -8 -8 -8 ------- Run | Yrd Mat Mat Mat Gar Mat Maximum Alert Level 1 | . . 1 1 1 . Low Security (%) 77 | 100 100 46 83 31 100 Level 1 22 | . . 53 16 68 . Level 2 . | . . . . . . Level 3 . | . . . . . . Level 4 . | . . . . . . Level 5 . | . . . . . . High Security . | . . . . . . Max Security . | . . . . . . Peak Influence 385 | 5 99 385 318 253 137 Initial 206 | . . 36 155 206 122 Average 101 | . 19 194 119 211 114 Influence Increases 1635 | 5 181 739 526 147 37 Destroy 0b10 Robot/C 820 | . 120 400 240 40 20 Destroy 0b10 Robot/NC 65 | 5 10 10 40 . . Destroy Leader 164 | . 20 72 62 10 . Successful Hack 50 | . . 32 18 . . Disable Machine 45 | . 15 . 15 . 15 Anti-Garrison Action 50 | . . . . 50 . Destroy Structure 36 | . 1 . 16 17 2 Partial Spotted 75 | . . 45 30 . . Lose Combat Pursuer 330 | . 15 180 105 30 . Influence Decreases 1526 | 5 94 457 577 212 181 Entered New Map 508 | . . 51 214 112 131 Time Decay 600 | 5 94 286 165 . 50 Lost Part 250 | . . 120 30 100 . Purge Threat 168 | . . . 168 . . Squads Dispatched 11 | . 1 5 2 . 3 Investigation 6 | . . 4 1 . 1 Extermination . | . . . . . . Reinforcement 5 | . 1 1 1 . 2 Assault . | . . . . . . Garrison . | . . . . . . Intercept . | . . . . . . Searches Triggered . | . . . . . . Construction Impeded . | . . . . . . Haulers Reinforced . | . . . . . . Active Scanning Responses . | . . . . . . Cargo Convoy Interrupts . | . . . . . . Stealth | -11 -10 -9 -8 -8 -8 --------- Run | Yrd Mat Mat Mat Gar Mat Distress Signals 8 | . . 3 5 . . Communications Jammed . | . . . . . . Distress Signals . | . . . . . . Times Spotted 82 | . 13 40 23 2 4 Peak Tracking Total 8 | . 4 6 8 4 3 Tactical Retreats 10 | . 1 6 2 1 . Traps | -11 -10 -9 -8 -8 -8 ------- Run | Yrd Mat Mat Mat Gar Mat Traps Triggered 3 | . . 1 . 1 1 Indirectly . | . . . . . . Trap Hack Attempts . | . . . . . . Triggered . | . . . . . . Disarmed . | . . . . . . Reprogrammed . | . . . . . . Reused . | . . . . . . Traps Extracted . | . . . . . . Installed . | . . . . . . Triggered . | . . . . . . Machines | -11 -10 -9 -8 -8 -8 ---------- Run | Yrd Mat Mat Mat Gar Mat Machines Disabled 5 | . 1 . 1 2 1 Max in Single Turn 1 | . 1 . 1 1 1 Garrison Relay 1 | . . . . 1 . Machines Repaired . | . . . . . . Machines Dismantled . | . . . . . . Machines Sabotaged . | . . . . . . Overloaded Fab Kills . | . . . . . . Hacking | -11 -10 -9 -8 -8 -8 --------- Run | Yrd Mat Mat Mat Gar Mat Machines Accessed 15 | . 2 8 5 . . Terminals 11 | . 2 6 3 . . Fabricators . | . . . . . . Repair Stations 3 | . . 2 1 . . Recycling Units . | . . . . . . Scanalyzers . | . . . . . . Garrison Access 1 | . . . 1 . . Total Hacks 37 | . 5 18 14 . . Successful 18 | . 3 5 10 . . Failed 19 | . 2 13 4 . . Catastrophic 2 | . . 2 . . . Database Lockouts . | . . . . . . Manual 25 | . 4 13 8 . . Terminals 28 | . 5 13 10 . . Fabricators . | . . . . . . Repair Stations 8 | . . 5 3 . . Recycling Units . | . . . . . . Scanalyzers . | . . . . . . Garrison Access 1 | . . . 1 . . Terminal Hacks 6 | . 1 1 4 . . Record 1 | . 1 . . . . Emergency Access Points 1 | . . 1 . . . Alert Level 2 | . . . 2 . . Unreport Threat 2 | . . . 2 . . Fabricator Hacks . | . . . . . . Repair Station Hacks 6 | . . 4 2 . . Scan Component 3 | . . 2 1 . . Repair 3 | . . 2 1 . . Recycling Unit Hacks . | . . . . . . Scanalyzer . | . . . . . . Garrison Access Hacks 1 | . . . 1 . . Unlock Access 1 | . . . 1 . . Unauthorized Hacks 5 | . 2 . 3 . . Terminals 5 | . 2 . 3 . . Botnet 5 | . 2 . 3 . . Fabricators . | . . . . . . Repair Stations . | . . . . . . Recycling Units . | . . . . . . Scanalyzers . | . . . . . . Garrison Access . | . . . . . . Data Cores Recovered 1 | . . . 1 . . Used . | . . . . . . Hacking Detections 10 | . 1 8 1 . . Full Trace Events 7 | . . 6 1 . . Feedback Events . | . . . . . . Feedback Blocked . | . . . . . . Robot Schematics Acquired . | . . . . . . Robots Built . | . . . . . . Authchips . | . . . . . . Time . | . . . . . . Total Robot Build Rating . | . . . . . . Part Schematics Acquired . | . . . . . . Parts Built . | . . . . . . Authchips . | . . . . . . Time . | . . . . . . Total Part Build Rating . | . . . . . . Part Studies Acquired . | . . . . . . Parts Repaired 3 | . . 2 1 . . Time 65 | . . 39 26 . . Parts Recycled . | . . . . . . Recycled Matter . | . . . . . . Retrieved Matter . | . . . . . . Retrieved Components . | . . . . . . Parts Scanalyzed . | . . . . . . Part Schematics Acquired . | . . . . . . Parts Damaged . | . . . . . . Bothacking | -11 -10 -9 -8 -8 -8 ------------ Run | Yrd Mat Mat Mat Gar Mat Used RIF Installer . | . . . . . . Robots Hacked . | . . . . . . Non-combat . | . . . . . . Combat . | . . . . . . Robot Hacks Applied . | . . . . . . Relay Couplers Released 5 | . . . . 5 . Machine Destruction 5 | . . . . 5 . Fabnet Peak Effective % . | . . . . . . Robots Rewired . | . . . . . . Allies Hacked . | . . . . . . Hacks Repelled . | . . . . . . Allies | -11 -10 -9 -8 -8 -8 -------- Run | Yrd Mat Mat Mat Gar Mat Total Allies . | . . . . . . Largest Group . | . . . . . . Highest-Rated Group . | . . . . . . Highest-Rated Ally . | . . . . . . Initial Warlord ECA Mod 1 | . . . . . 1 Total Orders . | . . . . . . Ally Attacks . | . . . . . . Total Damage . | . . . . . . Kills . | . . . . . . Allies Corrupted . | . . . . . . Allies Melted . | . . . . . . Intel | -11 -10 -9 -8 -8 -8 ------- Run | Yrd Mat Mat Mat Gar Mat Active Infowar (turns) 1091 | 21 895 175 . . . Terrain 1091 | 21 895 175 . . . Robot Analysis Total . | . . . . . . Derelict Logs Recovered . | . . . . . . Drone Launches . | . . . . . . Drone Recoveries . | . . . . . . Exploration | -11 -10 -9 -8 -8 -8 ------------- Run | Yrd Mat Mat Mat Gar Mat Turns Passed 2401 | 156 895 626 412 205 107 Spaces Moved 2283 | 65 506 802 664 169 77 Core 26 | 4 . . . 22 . Treads 514 | 61 453 . . . . Legs 106 | . . . . 29 77 Wheels . | . . . . . . Hover . | . . . . . . Flight 1637 | . 53 802 664 118 . Fastest Speed 25 | 50 117 31 25 27 120 Average Speed 69 | 153 155 35 28 72 120 Slowest Speed 500 | 160 280 280 107 500 120 Overloaded Moves . | . . . . . . Propulsion Burnouts . | . . . . . . Robots Hopped 7 | . . 6 1 . . Potential Cave-ins . | . . . . . . Cave-ins Triggered . | . . . . . . Exploration Rate (%) 30 | 6 49 53 32 36 9 Regions Visited 5 Branch Regions . Pre-discovered Areas . | . . . . . . Known Exits Taken 1 | . . . 1 . . Unknown Exits Taken 3 | 1 1 1 . . . Scrap Searched . | . . . . . . Spaces Dug . | . . . . . . Terrain Destroyed 41 | 4 . . 15 20 2 Melee . | . . . . . . Projectile 6 | . . . 4 . 2 AOE 35 | 4 . . 11 20 . Terrain Rammed . | . . . . . . Walls Destroyed . | . . . . . . Machines Disabled . | . . . . . . Actions | -11 -10 -9 -8 -8 -8 --------- Run | Yrd Mat Mat Mat Gar Mat Total 2847 | 99 580 1045 817 220 86 Wait 160 | . 2 118 40 . . Move 2264 | 64 505 789 662 167 77 Hop 7 | . . 6 1 . . Pick Up 72 | 11 19 21 14 5 2 Fast Attach 13 | . 3 3 7 . . Attach 42 | 7 3 17 7 7 1 Detach 9 | . 2 3 4 . . Swap 25 | 2 4 6 13 . . Drop 51 | . 19 14 18 . . Fire 173 | 15 23 68 44 17 6 Melee 14 | . . . 6 8 . Ram 1 | . . . 1 . . Kick . | . . . . . . Crush . | . . . . . . Escape Stasis 16 | . . . . 16 . Rewire . | . . . . . . Trap . | . . . . . . Miscellaneous . | . . . . . . Route ------- -11/Scrapyard -10/Materials (discovered 2 exits: *Mat / [*Min]) -9/Materials -8/Materials -8/Garrison -8/Materials History --------- Turn | Location | Event 11 | -11/Scrapyard | Discovered new exit (range 15) 157 | -11/Scrapyard | Entered Materials 310 | -10/Materials | Build established: Mutant 560 | -10/Materials | Discovered new exit (range 10) 727 | -10/Materials | Discovered new exit (range 5) 1052 | -10/Materials | Entered another Materials area 1052 | -9/Materials | Evolved 2 slots: Propulsion x2 1076 | -9/Materials | Repaired Flight Unit 1189 | -9/Materials | Lost 3 parts (2n1w) 1302 | -9/Materials | Repaired Flight Unit 1335 | -9/Materials | Core integrity fell below 50% 1341 | -9/Materials | Lost 6 parts (1p2n1u2w) 1639 | -9/Materials | Core integrity fell below 20% 1665 | -9/Materials | Discovered new exit (range 15) 1678 | -9/Materials | Entered another Materials area 1678 | -8/Materials | Evolved 2 slots: Propulsion x1, Utility x1 1798 | -8/Materials | Repaired Sml. Storage Unit 2090 | -8/Materials | Identified exit to Garrison 2090 | -8/Materials | Entered Garrison 2118 | -8/Garrison | Triggered checkpoint 2127 | -8/Garrison | Discovered new exit (range 10) 2169 | -8/Garrison | Core integrity fell below 50% 2191 | -8/Garrison | Lost 6 parts (1p4n1u) 2204 | -8/Garrison | Garrison Relay disabled 2207 | -8/Garrison | Core integrity fell below 20% 2266 | -8/Garrison | Lost 3 parts (3w) 2295 | -8/Garrison | Entered Materials 2402 | -8/Materials | Destroyed by S-10 Pest with Light Assault Rifle Last Messages --------------- 02305_ TF Node disabled. 02305_ Imp. Sensor Array tumbles out of TF Node. 02305_ Imp. Signal Interpreter tumbles out of TF Node. 02308_ Acquired Lgt. EM Pulse Cannon. 02326_ O-16 Technician: "IFF HANDSHAKE FAILED. SECURING TERMINAL." 02336_ ALERT: Hostiles spotted, dispatching reinforcements to Terminal M008. 02343_ Acquired Hacking Suite. 02356_ O-16 Technician knocked back. 02359_ Acquired 2 matter. 02392_ Triggered Alarm Trap. 02392_ An alarm sounds. 02392_ ALERT: Alarm triggered, dispatching investigation squad. 02395_ ALERT: Hostiles spotted, dispatching reinforcements to Terminal M007. 02399_ S-10 Pest knocked back. 02401_ S-10 Pest destroyed. Map ----- +----------------------------------------------------+ | ???????????????????#####"##### # "" # | | ???????????????????# ## # # | | ???????????????????#" """ ## ########### | | ???????????????????#T """"" # #????????? | | ???????????????????#" """"" " ! ! #????????? | | ???????????????????# """"" + #????????? | | ???????????????????# """ # #????????? | | ???????????????????# # #????????? | | ???????????????????# ## ##????????? | | ???????????????????# =## #?????????? | | ???????????????????########### #?????????? | | ??????????????????????###????# #?????????? | | ??????????????????????# ???# #?????????? | | ??????????????????????# ""???# #?????????? | | ??????????????????????# "R???# #?????????? | | ??????????????????????# " "??# #?????????? | | ??????????????????????? ??# #?????????? | | ???????????????????????? ??# #?????????? | | ??????????################+### #?????????? | | ?????????? #?????????? | | ?????????????# #?????????? | | ?????????????+ %s #?????????? | | ???????????????#########/#########?????????? | | ???????????????????# %* #?????????????? | | ???????????????????# #?????????????? | | ???????????????????# @ #?????????????? | | ???????????????????# """"""" #?????????????? | | ???????????????????# """"""" #?????????????? | | ???????????????????# """"""" #?????????????? | | ???????????????????# """"""" #?????????????? | | ???????????????????# """"""" #?????????????? | | ???????????????????????####??#?????????????? | | ???????????????????????????????????????????? | | ???????????????????????????????????????????? | | ???????????????????????????????????????????? | | ???????????????????????????????????????????? | | ???????????????????????????????????????????? | | ???????????????????????????????????????????? | | ???????????????????????????????????????????? | | ???????????????????????????????????????????? | | ???????????????????????????????????????????? | | ???????????????????????????????????????????? | | ???????????????????????????????????????????? | | ???????????????????????????????????????????? | | ???????????????????????????????????????????? | | ???????????????????????????????????????????? | | ???????????????????????????????????????????? | | ???????????????????????????????????????????? | | ???????????????????????????????????????????? | | ???????????????????????????????????????????? | +----------------------------------------------------+ Best States ------------- Heat Dissipation 45 Energy Generation 16 Energy Capacity 290 Matter Stores 300 Matter Capacity 300 Sight Range 16 Terrain Scan Range 16 Terrain Scan Density 10 Additional Mass Support 6 Utility Shielding 33 Evasion (%) 73 Recoil Reduction 2 Defensive Hacking 10 Item Schematics ----------------- None Robot Schematics ------------------ None Fabricated ------------ Nothing Repaired ---------- Flight Unit | 40% | -9/Materials Flight Unit | 5% | -9/Materials Sml. Storage Unit | 37% | -8/Materials Studied --------- None Alien Tech Used ----------------- None Achievements -------------- None Challenges ------------ None Game ------ Seed GlidesysDefenseBay Manual? 0 Play Time 00:34:38 Cumulative 27.5 hours Start 2025.11.28 @ 15:05:54 End 2025.11.28 @ 15:40:23 Sessions 1 Manual Loads 0 Difficulty Rogue Special Mode None Game No. 57 Rogue 57 Adventurer 0 Explorer 0 Win Type - Total 0 Types 0/0/0/0/0/0/0/0/0/0 Lore% 6 Gallery% 23 Achievement% 14 Wizard Run 0 Options --------- Layout 1 ASCII 0 Keyboard 0 Movement Mouse Keybinds 0 Fullscreen 1 Font 24/Smallcaps Map View 50x35 Zoom Use 0% Tactical HUD 1 Map Filters NONE Filters NONE Steam 1 RUN: 4b82c66e-aba0-4a52-a342-5ba0a99cc3f7